bitfinex/quotes_BTCUSD_20240719
["timestamp","ask_amount","ask_price","bid_price","bid_amount"]
[1721377334169,1.3210473,63592.0,63591.0,0.01]
[1721377334434,1.37842186,63592.0,63591.0,0.01]
[1721377334558,1.96783376,63592.0,63591.0,0.01]
[1721377334771,1.92122586,63592.0,63591.0,0.01]
[1721377334950,1.69292586,63592.0,63591.0,0.01]
[1721377335157,1.92122586,63592.0,63591.0,0.01]
[1721377335410,1.69292586,63592.0,63591.0,0.01]
[1721377335640,1.92122586,63592.0,63591.0,0.01]
[1721377335847,2.28574143,63592.0,63591.0,0.01]
[1721377336075,2.33234933,63592.0,63591.0,0.01]
[1721377336374,2.20429974,63592.0,63591.0,0.01]
[1721377336508,1.97599974,63592.0,63591.0,0.01]
[1721377336706,2.20429974,63592.0,63591.0,0.01]
[1721377336930,2.20429974,63592.0,63591.0,0.006]
[1721377337281,2.20729974,63592.0,63591.0,0.001]
[1721377337662,2.21929974,63592.0,63591.0,0.002]
[1721377337866,2.07907777,63592.0,63591.0,0.002]
[1721377338067,2.06707777,63592.0,63591.0,0.001]
[1721377338265,2.07507777,63592.0,63591.0,0.001]
[1721377339049,2.06896305,63592.0,63591.0,0.001]
[1721377339253,2.11896305,63592.0,63591.0,0.001]
[1721377339424,2.27331262,63592.0,63591.0,0.001]
[1721377340035,2.27731262,63592.0,63591.0,0.002]
[1721377340439,2.12296305,63592.0,63591.0,0.002]
[1721377340677,2.12296305,63592.0,63591.0,0.001]
[1721377340678,2.11896305,63592.0,63591.0,0.001]
[1721377341058,2.12296305,63592.0,63591.0,0.002]
[1721377342075,2.0619543,63592.0,63591.0,0.002]
[1721377342233,2.12076593,63592.0,63591.0,0.002]
[1721377345248,2.07076593,63592.0,63591.0,0.002]
[1721377345445,1.60229426,63592.0,63591.0,0.002]
[1721377345769,1.54306856,63592.0,63591.0,0.002]
[1721377345947,1.60149342,63592.0,63591.0,0.002]
[1721377346151,1.80584299,63592.0,63591.0,0.002]
[1721377346386,2.12034699,63592.0,63591.0,0.002]
[1721377346568,1.80584299,63592.0,63591.0,0.002]
[1721377346774,1.96022473,63592.0,63591.0,0.002]
[1721377346903,2.27472873,63592.0,63591.0,0.002]
[1721377347364,2.12037916,63592.0,63591.0,0.002]
[1721377347792,2.11637916,63592.0,63591.0,0.001]
[1721377348306,0.471876,63576.0,63575.0,0.000913]
[1721377348919,0.78646,63576.0,63575.0,0.000913]
[1721377350584,0.79346,63576.0,63575.0,0.000913]
[1721377351748,0.78946,63576.0,63575.0,0.000913]
[1721377351950,0.78646,63576.0,63575.0,0.000913]
[1721377352221,1.105044,63576.0,63575.0,0.000913]
[1721377352429,1.422628,63576.0,63575.0,0.000913]
[1721377352583,1.4691784,63576.0,63575.0,0.000913]
[1721377352786,1.52615221,63576.0,63575.0,0.000913]
[1721377352991,1.4691784,63576.0,63575.0,0.000913]
[1721377353166,1.422628,63576.0,63575.0,0.000913]
[1721377353769,1.57697757,63576.0,63575.0,0.000913]
[1721377353916,1.63260403,63576.0,63575.0,0.000913]
[1721377354322,1.77603602,63576.0,63575.0,0.000913]
[1721377354727,1.78303602,63576.0,63575.0,0.000913]
[1721377354938,2.01133602,63576.0,63575.0,0.000913]
[1721377355313,2.14570268,63576.0,63575.0,0.000913]
[1721377355516,1.98336937,63576.0,63575.0,0.000913]
[1721377355720,1.8290198,63576.0,63575.0,0.000913]
[1721377355864,1.92202717,63576.0,63575.0,0.000913]
[1721377356082,1.91902717,63576.0,63575.0,0.000913]
[1721377356471,1.8260198,63576.0,63575.0,0.000913]
[1721377356672,1.89576117,63576.0,63575.0,0.000913]
[1721377356874,0.9024518,63576.0,63575.0,0.000913]
[1721377357079,0.474876,63576.0,63575.0,0.000913]
[1721377357276,0.474876,63576.0,63575.0,0.15629474]
[1721377357277,0.007,63576.0,63575.0,0.15629474]
[1721377357652,0.007,63576.0,63575.0,0.48028874]
[1721377357884,0.013,63576.0,63575.0,0.48128874]
[1721377358080,0.013,63576.0,63575.0,0.48028874]
[1721377358081,0.01,63576.0,63575.0,0.48028874]
[1721377358297,0.01,63576.0,63575.0,0.89387774]
[1721377358298,0.006,63576.0,63575.0,0.89387774]
[1721377358455,0.006,63576.0,63575.0,1.20846674]
[1721377358657,0.01,63576.0,63575.0,1.20946674]
[1721377358865,0.01,63576.0,63575.0,0.42299474]
[1721377359042,0.004,63576.0,63575.0,0.42299474]
[1721377359442,0.004,63576.0,63575.0,0.245613]
[1721377359694,0.475876,63576.0,63575.0,0.167813]
[1721377360104,0.471876,63576.0,63575.0,0.066813]
[1721377360529,0.157292,63576.0,63575.0,0.069813]
[1721377360756,0.157292,63576.0,63575.0,0.066813]
[1721377361185,0.157292,63576.0,63575.0,0.067813]
[1721377361387,0.158292,63576.0,63575.0,0.067813]
[1721377361647,0.472876,63576.0,63575.0,0.067813]
[1721377361886,0.78746,63576.0,63575.0,0.001913]
[1721377362075,1.2885467,63576.0,63575.0,0.001913]
[1721377362269,1.23441632,63576.0,63575.0,0.001913]
[1721377362629,1.29175381,63576.0,63575.0,0.001913]
[1721377363115,1.29058265,63576.0,63575.0,0.001913]
[1721377363324,1.28958265,63576.0,63575.0,0.001913]
[1721377363519,1.44393222,63576.0,63575.0,0.001913]
[1721377363759,1.36331928,63576.0,63575.0,0.002913]
[1721377364997,1.29358265,63576.0,63575.0,0.002913]
[1721377365832,1.29358265,63576.0,63575.0,0.001913]
[1721377366077,1.34005835,63576.0,63575.0,0.002913]
[1721377366227,1.34781557,63576.0,63575.0,0.002913]
[1721377366390,1.30134424,63576.0,63575.0,0.002913]
[1721377366591,1.34781557,63576.0,63575.0,0.002913]
[1721377367197,1.35546927,63576.0,63575.0,0.002913]
[1721377369284,1.35605402,63576.0,63575.0,0.002913]
[1721377371158,1.30192899,63576.0,63575.0,0.002913]
[1721377371567,1.22562899,63576.0,63575.0,0.002913]
[1721377372231,1.1682915,63576.0,63575.0,0.002913]
[1721377372664,0.482876,63576.0,63575.0,0.002913]
[1721377374179,0.011,63576.0,63575.0,0.002913]
[1721377374406,0.011,63576.0,63575.0,0.150813]
[1721377374606,0.168292,63576.0,63575.0,0.150813]
[1721377375042,0.482876,63576.0,63575.0,0.150813]
[1721377375196,0.79746,63576.0,63575.0,0.068813]
[1721377375404,0.475876,63576.0,63575.0,0.067813]
[1721377375603,0.475876,63576.0,63575.0,0.001913]
[1721377376261,0.79046,63576.0,63575.0,0.001913]
[1721377376465,0.477876,63576.0,63575.0,0.001913]
[1721377376669,0.78846,63576.0,63575.0,0.000913]
[1721377377060,0.78846,63576.0,63575.0,0.001913]
[1721377377061,0.79946,63576.0,63575.0,0.001913]
[1721377377264,1.176044,63576.0,63575.0,0.001913]
[1721377377428,1.33220288,63576.0,63575.0,0.001913]
[1721377378091,1.35544708,63576.0,63575.0,0.001913]
[1721377378409,2.16065505,63576.0,63575.0,0.001913]
[1721377378639,2.16063412,63576.0,63575.0,0.001913]
[1721377378854,2.04927787,63576.0,63575.0,0.001913]
[1721377379032,1.99927787,63576.0,63575.0,0.001913]
[1721377379377,2.11563623,63576.0,63575.0,0.001913]
[1721377379602,1.99927787,63576.0,63575.0,0.001913]
[1721377379820,2.00127787,63576.0,63575.0,0.001913]
[1721377380047,1.8319283,63576.0,63575.0,0.000913]
[1721377380251,2.00732192,63576.0,63575.0,0.001913]
[1721377380448,1.8979283,63576.0,63575.0,0.002913]
[1721377380646,1.5333443,63576.0,63575.0,0.002913]
[1721377380896,1.64974805,63576.0,63575.0,0.002913]
[1721377381252,1.65723676,63576.0,63575.0,0.002913]
[1721377382083,1.70723676,63576.0,63575.0,0.002913]
[1721377382281,2.02182076,63576.0,63575.0,0.002913]
[1721377382526,2.12617033,63576.0,63575.0,0.002913]
[1721377383036,1.65723676,63576.0,63575.0,0.002913]
[1721377383554,1.97182076,63576.0,63575.0,0.002913]
[1721377383778,2.02154329,63576.0,63575.0,0.002913]
[1721377383984,1.97154329,63576.0,63575.0,0.002913]
[1721377384801,1.90511935,63576.0,63575.0,0.002913]
[1721377385016,2.05946892,63576.0,63575.0,0.002913]
[1721377385624,2.00946892,63576.0,63575.0,0.002913]
[1721377385851,1.85511935,63576.0,63575.0,0.002913]
[1721377386050,1.65697613,63576.0,63575.0,0.002913]
[1721377386197,1.50259439,63576.0,63575.0,0.002913]
[1721377386621,1.32215361,63576.0,63575.0,0.002913]
[1721377386825,1.2655562,63576.0,63575.0,0.002913]
[1721377387023,1.32214331,63576.0,63575.0,0.002913]
[1721377388475,1.68087462,63576.0,63575.0,0.002913]
[1721377388892,2.11188702,63576.0,63575.0,0.002913]
[1721377389082,1.99545862,63576.0,63575.0,0.002913]
[1721377389871,1.93887151,63576.0,63575.0,0.002913]
[1721377390076,1.99459978,63576.0,63575.0,0.002913]
[1721377390289,1.94459978,63576.0,63575.0,0.002913]
[1721377390489,1.9445999,63576.0,63575.0,0.002913]
[1721377390824,1.9945999,63576.0,63575.0,0.002913]
[1721377392184,1.99509376,63576.0,63575.0,0.002913]
[1721377392384,1.84074419,63576.0,63575.0,0.002913]
[1721377392864,1.84084191,63576.0,63575.0,0.002913]
[1721377393278,1.78452194,63576.0,63575.0,0.002913]
[1721377393396,1.84084467,63576.0,63575.0,0.002913]
[1721377393806,1.79084467,63576.0,63575.0,0.002913]
[1721377395641,1.93120569,63576.0,63575.0,0.002913]
[1721377395893,1.98120569,63576.0,63575.0,0.002913]
[1721377396462,1.98194799,63576.0,63575.0,0.002913]
[1721377396866,1.93194799,63576.0,63575.0,0.002913]
[1721377397071,1.79158697,63576.0,63575.0,0.002913]
[1721377399505,1.79185311,63576.0,63575.0,0.002913]
[1721377400371,1.90833102,63576.0,63575.0,0.002913]
[1721377401409,1.35776528,63576.0,63575.0,0.002913]
[1721377401620,0.3599432,63576.0,63575.0,0.149013]
[1721377401823,0.018,63576.0,63575.0,0.30339474]
[1721377401994,0.018,63576.0,63575.0,0.87842326]
[1721377402194,0.018,63576.0,63575.0,1.21601226]
[1721377402375,0.018,63576.0,63575.0,1.21286674]
[1721377402599,0.009,63576.0,63575.0,1.52645574]
[1721377402800,0.009,63576.0,63575.0,1.21186674]
[1721377402998,0.009,63576.0,63575.0,1.52745574]
[1721377402999,0.016,63576.0,63575.0,1.52745574]
[1721377403617,0.009,63576.0,63575.0,1.52645574]
[1721377403970,0.01,63576.0,63575.0,1.53545574]
[1721377404184,0.001,63576.0,63575.0,1.53445574]
[1721377404430,0.47259,63592.0,63588.0,0.1422]
[1721377404626,0.157255,63591.0,63589.0,0.002794]
[1721377404828,0.315336,63592.0,63589.0,0.002794]
[1721377405029,0.157254,63591.0,63589.0,0.002794]
[1721377406538,0.786285,63590.0,63589.0,0.002794]
[1721377406738,0.471778,63589.0,63588.0,0.001]
[1721377407144,1.100816,63589.0,63588.0,0.001]
[1721377408434,0.00083,63592.0,63583.0,0.0613]
[1721377408640,0.00083,63592.0,63584.0,0.002794]
[1721377408844,0.003,63591.0,63583.0,0.21568174]
[1721377409018,0.004,63589.0,63583.0,0.21568174]
[1721377409226,0.07717479,63587.0,63584.0,0.157271]
[1721377409431,0.786335,63586.0,63585.0,0.002794]
[1721377409562,0.786335,63586.0,63578.0,0.0612]
[1721377409563,0.157284,63579.0,63578.0,0.0612]
[1721377410467,0.786422,63579.0,63578.0,0.0612]
[1721377411368,0.471853,63579.0,63578.0,0.0612]
[1721377411590,0.472853,63579.0,63578.0,0.0682]
[1721377411818,0.472853,63579.0,63578.0,0.007]
[1721377412032,0.787422,63579.0,63578.0,0.007]
[1721377412219,0.471876,63576.0,63575.0,0.000913]
[1721377412423,0.78646,63576.0,63575.0,0.000913]
[1721377412633,1.101044,63576.0,63575.0,0.000913]
[1721377412850,0.78646,63576.0,63575.0,0.000913]
[1721377413915,1.21609319,63576.0,63575.0,0.000913]
[1721377414108,1.101044,63576.0,63575.0,0.000913]
[1721377415053,1.34082574,63576.0,63575.0,0.001913]
[1721377415272,1.39356593,63576.0,63575.0,0.001913]
[1721377415461,1.39356593,63576.0,63575.0,0.000913]
[1721377415462,1.56399065,63576.0,63575.0,0.000913]
[1721377415625,1.56399065,63576.0,63575.0,0.002913]
[1721377415626,1.97808851,63576.0,63575.0,0.002913]
[1721377416232,2.04446695,63576.0,63575.0,0.002913]
[1721377416481,1.75873894,63576.0,63575.0,0.000913]
[1721377416652,1.85184033,63576.0,63575.0,0.000913]
[1721377416823,1.85184033,63576.0,63575.0,0.001913]
[1721377416824,1.86384033,63576.0,63575.0,0.001913]
[1721377417034,1.82073894,63576.0,63575.0,0.001913]
[1721377417265,2.09146695,63576.0,63575.0,0.001913]
[1721377417439,1.92234832,63576.0,63575.0,0.001913]
[1721377417637,1.92413148,63576.0,63575.0,0.001913]
[1721377418024,1.78178191,63576.0,63575.0,0.002913]
[1721377418225,1.87487923,63576.0,63575.0,0.002913]
[1721377418562,1.78178191,63576.0,63575.0,0.002913]
[1721377419326,1.87482821,63576.0,63575.0,0.002913]
[1721377419528,1.83173089,63576.0,63575.0,0.002913]
[1721377419727,1.82188767,63576.0,63575.0,0.002913]
[1721377420004,1.91498499,63576.0,63575.0,0.002913]
[1721377420231,1.46714689,63576.0,63575.0,0.002913]
[1721377420564,1.78173089,63576.0,63575.0,0.002913]
[1721377421532,1.87482821,63576.0,63575.0,0.002913]
[1721377421919,1.78173089,63576.0,63575.0,0.002913]
[1721377422119,1.87482529,63576.0,63575.0,0.002913]
[1721377422323,1.78173089,63576.0,63575.0,0.002913]
[1721377422486,1.93608046,63576.0,63575.0,0.002913]
[1721377422685,2.02917486,63576.0,63575.0,0.002913]
[1721377423096,1.87482529,63576.0,63575.0,0.002913]
[1721377423305,1.78173089,63576.0,63575.0,0.002913]
[1721377423868,2.28148605,63576.0,63575.0,0.002913]
[1721377424069,2.37456634,63576.0,63575.0,0.002913]
[1721377424825,1.87456634,63576.0,63575.0,0.002913]
[1721377424939,1.78148605,63576.0,63575.0,0.002913]
[1721377425804,2.28148605,63576.0,63575.0,0.002913]
[1721377426971,2.28036965,63576.0,63575.0,0.002913]
[1721377427378,2.37346439,63576.0,63575.0,0.002913]
[1721377427598,2.28036965,63576.0,63575.0,0.002913]
[1721377428011,1.78036965,63576.0,63575.0,0.002913]
[1721377428682,0.91841991,63576.0,63575.0,0.146913]
[1721377428875,0.024,63576.0,63575.0,0.146913]
[1721377429770,0.157287,63578.0,63575.0,0.144913]
[1721377429993,0.157267,63586.0,63579.0,0.0636]
[1721377430214,0.157257,63590.0,63585.0,0.157268]
[1721377430439,0.157257,63590.0,63586.0,0.002794]
[1721377430665,0.157257,63590.0,63587.0,0.0636]
[1721377430877,0.00083,63592.0,63588.0,0.002794]
[1721377430878,0.158082,63592.0,63588.0,0.002794]
[1721377431519,0.157255,63591.0,63588.0,0.002794]
[1721377431974,0.00083,63592.0,63588.0,0.002794]
[1721377432176,0.157257,63590.0,63588.0,0.002794]
[1721377432376,0.00083,63592.0,63588.0,0.002794]
[1721377432377,0.00083,63592.0,63589.0,0.1429]
[1721377432580,0.157255,63591.0,63590.0,0.002794]
[1721377432985,0.164255,63591.0,63590.0,0.002794]
[1721377433188,0.157255,63591.0,63590.0,0.002794]
[1721377433721,0.157257,63590.0,63589.0,0.1429]
[1721377434549,0.003,63590.0,63589.0,0.1429]
[1721377435230,0.157255,63591.0,63589.0,0.1429]
[1721377435429,0.157255,63591.0,63590.0,0.002794]
[1721377435644,0.158255,63591.0,63590.0,0.002794]
[1721377436266,0.157255,63591.0,63590.0,0.002794]
[1721377436466,0.471764,63591.0,63590.0,0.002794]
[1721377436707,0.475764,63591.0,63590.0,0.002794]
[1721377437836,0.472764,63591.0,63590.0,0.002794]
[1721377438217,0.475764,63591.0,63590.0,0.002794]
[1721377438395,0.161255,63591.0,63590.0,0.002794]
[1721377439392,0.475764,63591.0,63590.0,0.002794]
[1721377439595,0.475764,63591.0,63589.0,0.1429]
[1721377439596,0.471771,63590.0,63589.0,0.1429]
[1721377439801,0.786285,63590.0,63589.0,0.1429]
[1721377440693,0.471808,63585.0,63584.0,0.0656]
[1721377441020,0.786347,63585.0,63584.0,0.0656]
[1721377441907,0.31452,63589.0,63584.0,0.0656]
[1721377442069,0.157255,63591.0,63587.0,0.002794]
[1721377442275,0.157262,63589.0,63587.0,0.15717574]
[1721377442473,0.471786,63588.0,63587.0,0.002794]
[1721377442952,0.157269,63585.0,63584.0,0.006]
[1721377443079,0.471831,63582.0,63581.0,0.0623]
[1721377443288,0.786385,63582.0,63581.0,0.0623]
[1721377443893,0.157287,63578.0,63577.0,0.0642]
[1721377444098,0.471861,63578.0,63577.0,0.0642]
[1721377444730,0.786435,63578.0,63577.0,0.0642]
[1721377445514,0.786435,63578.0,63577.0,0.0672]
[1721377445948,0.471861,63578.0,63577.0,0.0672]
[1721377446144,0.542836,63586.0,63578.0,0.0794]
[1721377446145,0.157269,63586.0,63578.0,0.0794]
[1721377446309,0.157271,63585.0,63580.0,0.15728]
[1721377446668,0.157272,63584.0,63581.0,0.002794]
[1721377447285,0.314541,63585.0,63581.0,0.002794]
[1721377447461,0.157276,63583.0,63581.0,0.002794]
[1721377449121,0.157272,63584.0,63581.0,0.002794]
[1721377449274,0.314518,63590.0,63582.0,0.22098174]
[1721377449479,0.15726,63589.0,63585.0,0.157268]
[1721377449684,0.15726,63589.0,63586.0,0.002794]
[1721377449888,0.157255,63591.0,63587.0,0.21488174]
[1721377450110,0.157257,63590.0,63588.0,0.002794]
[1721377450308,0.157259,63589.0,63588.0,0.002794]
[1721377450484,0.157262,63588.0,63587.0,0.21488174]
[1721377450731,0.157272,63584.0,63583.0,0.1446]
[1721377451067,0.157272,63584.0,63583.0,0.0648]
[1721377451068,0.471816,63584.0,63583.0,0.0648]
[1721377451269,0.78636,63584.0,63583.0,0.0648]
[1721377451689,0.786372,63583.0,63582.0,0.002]
[1721377451805,0.786372,63583.0,63582.0,0.001]
[1721377452064,0.471846,63580.0,63579.0,0.0609]
[1721377452267,0.78641,63580.0,63579.0,0.0609]
[1721377453736,0.471861,63578.0,63577.0,0.0756]
[1721377454039,0.471861,63578.0,63575.0,0.067213]
[1721377454040,0.471876,63576.0,63575.0,0.067213]
[1721377454925,0.157292,63576.0,63575.0,0.067213]
[1721377455344,0.471876,63576.0,63575.0,0.067213]
[1721377455549,0.472876,63576.0,63575.0,0.073213]
[1721377455754,0.78746,63576.0,63575.0,0.073213]
[1721377455954,0.472876,63576.0,63575.0,0.073213]
[1721377456255,0.159292,63576.0,63575.0,0.078213]
[1721377456397,0.002,63576.0,63575.0,0.70447774]
[1721377456598,0.002,63576.0,63575.0,1.09746674]
[1721377460551,0.002,63576.0,63575.0,0.78287774]
[1721377460783,0.002,63576.0,63575.0,0.46828874]
[1721377461593,0.002,63576.0,63575.0,0.78287774]
[1721377469722,0.002,63576.0,63575.0,1.09746674]
[1721377469856,0.002,63576.0,63575.0,1.41205574]
[1721377470058,0.002,63576.0,63575.0,1.51205574]
[1721377470639,0.002,63576.0,63575.0,1.50705574]
[1721377470842,0.157262,63588.0,63584.0,0.157271]
[1721377472444,0.157262,63588.0,63584.0,0.160271]
[1721377473041,0.157259,63589.0,63586.0,0.002794]
[1721377473263,0.157259,63589.0,63585.0,0.157268]
[1721377473458,0.23443779,63588.0,63584.0,0.003]
[1721377473687,0.157265,63587.0,63584.0,0.003]
[1721377474196,0.157262,63589.0,63585.0,0.157269]
[1721377474590,0.157262,63589.0,63586.0,0.002794]
[1721377475504,0.04671787,63590.0,63586.0,0.160061]
[1721377475712,0.04671787,63590.0,63587.0,0.29248174]
[1721377475914,0.04671787,63591.0,63588.0,0.157261]
[1721377476292,0.157257,63590.0,63589.0,0.002794]
[1721377476490,0.20397487,63590.0,63586.0,0.157267]
[1721377476787,0.20397487,63590.0,63586.0,0.002794]
[1721377476788,0.15826,63589.0,63586.0,0.002794]
[1721377477129,0.15726,63589.0,63586.0,0.002794]
[1721377477942,0.15726,63589.0,63587.0,0.001]
[1721377478050,0.15726,63589.0,63586.0,0.002794]
[1721377478750,0.15726,63589.0,63585.0,0.002794]
[1721377478989,0.157262,63588.0,63586.0,0.002]
[1721377480123,0.04683684,63589.0,63586.0,0.002]
[1721377480377,0.157259,63589.0,63586.0,0.002]
[1721377480585,0.157262,63588.0,63585.0,0.157269]
[1721377480892,0.159262,63588.0,63584.0,0.000913]
[1721377481228,0.159262,63588.0,63584.0,0.158184]
[1721377481398,0.160262,63588.0,63584.0,0.158184]
[1721377481630,0.003,63588.0,63586.0,0.158266]
[1721377481834,0.001,63588.0,63587.0,0.002794]
[1721377482036,0.001,63588.0,63584.0,0.46983474]
[1721377482037,0.158263,63588.0,63585.0,0.002794]
[1721377482556,0.157267,63586.0,63585.0,0.002794]
[1721377482763,0.12963325,63587.0,63584.0,0.002913]
[1721377483207,0.157269,63585.0,63584.0,0.002913]
[1721377483406,0.91035504,63585.0,63584.0,0.002913]
[1721377483927,1.36198265,63585.0,63584.0,0.002913]
[1721377484080,1.28480786,63585.0,63584.0,0.000913]
[1721377484280,1.21455798,63585.0,63584.0,0.000913]
[1721377484707,1.28490599,63585.0,63584.0,0.000913]
[1721377484906,1.2146525,63585.0,63584.0,0.000913]
[1721377485109,1.2186525,63585.0,63584.0,0.000913]
[1721377485512,1.26549065,63585.0,63584.0,0.000913]
[1721377485858,1.2186525,63585.0,63584.0,0.000913]
[1721377486080,1.2186525,63585.0,63584.0,0.001913]
[1721377486081,1.2948974,63585.0,63584.0,0.001913]
[1721377487466,0.22500529,63585.0,63584.0,0.001913]
[1721377487664,0.22500529,63585.0,63584.0,0.063713]
[1721377487665,0.06773629,63585.0,63584.0,0.063713]
[1721377488022,0.01,63585.0,63584.0,1.49579874]
[1721377488459,0.00083,63592.0,63591.0,1.100781]
[1721377488676,0.00083,63592.0,63591.0,1.49586274]
[1721377489878,0.00183,63592.0,63591.0,1.50786274]
[1721377490277,0.00183,63592.0,63591.0,0.56433574]
[1721377490504,0.00183,63592.0,63591.0,0.1771]
[1721377490701,0.00183,63592.0,63591.0,0.334354]
[1721377491279,0.00083,63592.0,63591.0,0.636863]
[1721377491463,0.00183,63592.0,63591.0,0.643863]
[1721377491663,0.00283,63592.0,63591.0,0.657863]
[1721377492043,0.00383,63592.0,63591.0,0.357354]
[1721377492163,0.00383,63592.0,63591.0,0.2001]
[1721377492579,0.00283,63592.0,63591.0,0.121]
[1721377492791,0.00283,63592.0,63591.0,0.021]
[1721377493039,0.00283,63592.0,63591.0,0.035]
[1721377493040,0.00383,63592.0,63591.0,0.035]
[1721377493208,0.00383,63592.0,63591.0,0.192254]
[1721377493413,0.00383,63592.0,63591.0,0.292254]
[1721377495458,0.00383,63592.0,63591.0,0.606763]
[1721377496265,0.00383,63592.0,63591.0,0.292254]
[1721377496927,0.00383,63592.0,63591.0,0.606763]
[1721377497379,0.00383,63592.0,63591.0,1.07565374]
[1721377497568,0.00383,63592.0,63591.0,0.292254]
[1721377498380,0.00383,63592.0,63591.0,0.135]
[1721377498580,0.08383,63592.0,63591.0,0.035]
[1721377498797,0.555586,63592.0,63591.0,0.035]
[1721377499345,1.184594,63592.0,63591.0,0.035]
[1721377499805,1.184594,63592.0,63584.0,0.000913]
[1721377499806,0.786347,63585.0,63584.0,0.000913]
[1721377500006,1.474386,63585.0,63584.0,0.000913]
[1721377500708,1.63346335,63585.0,63584.0,0.000913]
[1721377501148,1.58676463,63585.0,63584.0,0.000913]
[1721377501350,1.63346335,63585.0,63584.0,0.000913]
[1721377501870,1.52903773,63585.0,63584.0,0.000913]
[1721377502072,1.57432314,63585.0,63584.0,0.000913]
[1721377503022,1.63206956,63585.0,63584.0,0.000913]
[1721377503218,1.58332314,63585.0,63584.0,0.001913]
[1721377503417,1.59432314,63585.0,63584.0,0.002913]
[1721377503618,1.65206692,63585.0,63584.0,0.002913]
[1721377504015,1.55212978,63585.0,63584.0,0.002913]
[1721377504218,1.59435449,63585.0,63584.0,0.002913]
[1721377504446,1.65210632,63585.0,63584.0,0.002913]
[1721377505193,1.65202042,63585.0,63584.0,0.002913]
[1721377505399,1.9029999,63585.0,63584.0,0.002913]
[1721377505598,2.22857283,63585.0,63584.0,0.002913]
[1721377506358,2.22857283,63585.0,63584.0,0.001913]
[1721377506359,2.21957283,63585.0,63584.0,0.001913]
[1721377506556,2.21957283,63585.0,63584.0,0.000913]
[1721377506755,2.21957283,63585.0,63584.0,0.001913]
[1721377506756,2.06422326,63585.0,63584.0,0.001913]
[1721377506963,2.06422326,63585.0,63584.0,0.002913]
[1721377507338,2.07522326,63585.0,63584.0,0.002913]
[1721377508927,2.07501271,63585.0,63584.0,0.002913]
[1721377509487,2.19163358,63585.0,63584.0,0.002913]
[1721377509688,2.19163423,63585.0,63584.0,0.002913]
[1721377510067,2.13038547,63585.0,63584.0,0.002913]
[1721377510488,2.24696993,63585.0,63584.0,0.002913]
[1721377510685,2.19159717,63585.0,63584.0,0.002913]
[1721377510893,2.07501271,63585.0,63584.0,0.002913]
[1721377511171,2.13862385,63585.0,63584.0,0.002913]
[1721377511363,2.19214234,63585.0,63584.0,0.002913]
[1721377512672,1.415628,63576.0,63561.0,0.002794]
[1721377512877,1.415628,63576.0,63554.0,0.0635]
[1721377512878,2.24849197,63576.0,63554.0,0.0635]
[1721377513080,2.17856184,63576.0,63555.0,0.002794]
[1721377513281,2.22180201,63576.0,63555.0,0.002794]
[1721377513455,2.12856184,63576.0,63555.0,0.002794]
[1721377513902,2.37615158,63576.0,63555.0,0.002794]
[1721377514509,2.16821643,63576.0,63555.0,0.002794]
[1721377514711,2.19821041,63576.0,63555.0,0.002794]
[1721377515225,2.17832852,63576.0,63555.0,0.002794]
[1721377515400,0.786707,63556.0,63555.0,0.002794]
[1721377515602,0.314636,63566.0,63548.0,0.009163]
[1721377515603,0.472075,63549.0,63548.0,0.009163]
[1721377515806,1.30857374,63549.0,63548.0,0.009163]
[1721377516035,1.93800774,63549.0,63548.0,0.009163]
[1721377516247,1.97377645,63549.0,63548.0,0.009163]
[1721377516969,2.015415,63549.0,63548.0,0.014163]
[1721377517118,2.16976457,63549.0,63548.0,0.014163]
[1721377517604,2.16876457,63549.0,63548.0,0.009163]
[1721377518297,2.1864234,63549.0,63548.0,0.009163]
[1721377518495,2.22533508,63549.0,63548.0,0.009163]
[1721377518634,2.17533508,63549.0,63548.0,0.009163]
[1721377518836,2.18933508,63549.0,63548.0,0.009163]
[1721377519061,2.18933508,63549.0,63548.0,0.010163]
[1721377519481,2.18933508,63549.0,63548.0,0.009163]
[1721377519888,2.20333508,63549.0,63548.0,0.009163]
[1721377520932,2.2031458,63549.0,63548.0,0.009163]
[1721377521664,0.05,63545.0,63539.0,0.009163]
[1721377521869,2.5264048,63549.0,63539.0,0.009163]
[1721377521870,1.77188079,63541.0,63539.0,0.009163]
[1721377522072,2.38121953,63541.0,63539.0,0.009163]
[1721377522269,2.42866069,63541.0,63539.0,0.009163]
[1721377523080,2.42866069,63541.0,63540.0,0.001913]
[1721377523307,1.101873,63528.0,63523.0,0.00748903]
[1721377523453,1.470373,63528.0,63523.0,0.00748903]
[1721377523868,1.93957574,63528.0,63523.0,0.00748903]
[1721377524073,2.17543637,63528.0,63523.0,0.00748903]
[1721377525898,2.17643637,63528.0,63523.0,0.00748903]
[1721377526127,2.17943637,63528.0,63523.0,0.00748903]
[1721377526818,2.22943637,63528.0,63523.0,0.00748903]
[1721377527022,2.72943637,63528.0,63523.0,0.00748903]
[1721377527221,3.04425737,63528.0,63523.0,0.00748903]
[1721377527832,2.99125737,63528.0,63523.0,0.00748903]
[1721377528026,2.99025737,63528.0,63523.0,0.00748903]
[1721377528680,2.99925737,63528.0,63523.0,0.00748903]
[1721377529099,1.38635264,63528.0,63523.0,0.00748903]
[1721377529302,1.339173,63528.0,63523.0,0.07268903]
[1721377529710,1.349173,63528.0,63523.0,0.00748903]
[1721377532083,1.50355474,63528.0,63523.0,0.00748903]
[1721377532483,1.81837574,63528.0,63523.0,0.00748903]
[1721377532778,1.97272531,63528.0,63523.0,0.00748903]
[1721377533182,1.70051225,63528.0,63523.0,0.00748903]
[1721377533314,1.65790431,63528.0,63523.0,0.00748903]
[1721377534767,1.50352257,63528.0,63523.0,0.00748903]
[1721377535332,1.50352257,63528.0,63527.0,0.070055]
[1721377535333,0.019,63528.0,63527.0,0.070055]